bitfinex/quotes_SOLUSD_20250830
["timestamp","ask_amount","ask_price","bid_price","bid_amount"]
[1756515909130,52.35559401,205.3,205.29,0.03]
[1756515909552,53.04559401,205.3,205.29,0.03]
[1756515910150,14.28559401,205.3,205.29,0.03]
[1756515910333,53.04559401,205.3,205.29,0.03]
[1756515911129,38.76,205.3,205.29,0.03]
[1756515911546,39.45,205.3,205.29,0.03]
[1756515911746,65.45,205.3,205.29,0.03]
[1756515913133,70.3209206,205.3,205.29,0.03]
[1756515913862,70.3009206,205.3,205.29,0.03]
[1756515916365,31.5609206,205.3,205.29,0.03]
[1756515916568,70.3009206,205.3,205.29,0.03]
[1756515919581,57.89651461,205.3,205.29,0.03]
[1756515919959,69.6109206,205.3,205.29,0.03]
[1756515920683,30.8709206,205.3,205.29,0.03]
[1756515920850,38.74,205.3,205.29,0.7]
[1756515921553,26.0,205.32,205.29,0.7]
[1756515921851,38.74,205.31,205.3,0.67]
[1756515923765,44.30069574,205.31,205.29,0.03]
[1756515923960,0.69,205.3,205.29,0.03]
[1756515924160,43.61069574,205.31,205.29,0.03]
[1756515924668,44.30069574,205.31,205.29,0.03]
[1756515925851,4.87046593,205.32,205.29,0.03]
[1756515926077,38.72,205.31,205.3,0.67]
[1756515926584,38.72,205.31,205.29,0.03]
[1756515926791,38.72,205.31,205.29,0.7]
[1756515927156,38.78,205.31,205.29,0.7]
[1756515927652,0.06,205.31,205.3,0.67]
[1756515927852,38.78,205.31,205.3,0.67]
[1756515928275,38.78,205.31,205.29,0.03]
[1756515928480,38.78,205.31,205.29,0.7]
[1756515928984,38.78,205.31,205.3,0.67]
[1756515929555,38.78,205.31,205.29,0.03]
[1756515929782,38.78,205.31,205.29,0.7]
[1756515930278,0.06,205.31,205.29,0.03]
[1756515930580,39.47,205.31,205.29,0.03]
[1756515930959,38.78,205.31,205.29,0.03]
[1756515931770,26.66,205.3,205.29,0.03]
[1756515932375,14.25559401,205.3,205.29,0.03]
[1756515932563,14.25559401,205.3,205.28,0.03]
[1756515932564,26.0,205.29,205.28,0.03]
[1756515933075,78.95559401,205.29,205.28,0.03]
[1756515933676,83.82675188,205.29,205.28,0.03]
[1756515934492,85.78001988,205.29,205.28,0.03]
[1756515934679,70.23115787,205.29,205.28,0.03]
[1756515935374,69.57115787,205.29,205.28,0.03]
[1756515935590,5.53115787,205.29,205.28,0.03]
[1756515935825,70.23115787,205.29,205.28,0.03]
[1756515938710,31.53115787,205.29,205.28,0.03]
[1756515938919,70.23115787,205.29,205.28,0.03]
[1756515939235,30.87115787,205.29,205.28,0.03]
[1756515939708,69.57115787,205.29,205.28,0.03]
[1756515940809,64.7,205.29,205.28,0.73]
[1756515942210,38.7,205.29,205.28,0.73]
[1756515942419,38.68,205.3,205.28,0.73]
[1756515942716,38.68,205.3,205.29,0.7]
[1756515943324,43.61068456,205.31,205.29,0.7]
[1756515943526,38.74,205.31,205.28,0.03]
[1756515943705,39.4,205.31,205.28,0.03]
[1756515944206,43.61068965,205.31,205.28,0.03]
[1756515944413,0.66,205.3,205.28,0.03]
[1756515944613,38.68,205.29,205.28,0.03]
[1756515944929,64.68,205.29,205.28,0.03]
[1756515945335,70.21115787,205.29,205.28,0.03]
[1756515945910,57.80675188,205.29,205.28,0.03]
[1756515953639,21.08011488,205.29,205.28,0.03]
[1756515954019,59.74011488,205.29,205.28,0.03]
[1756515954929,39.59559401,205.27,205.26,1e-08]
[1756515955110,39.59559401,205.27,205.24,1e-08]
[1756515955111,39.59559401,205.26,205.24,1e-08]
[1756515955434,26.0,205.22,205.21,0.03]
[1756515955637,64.66,205.22,205.21,1e-08]
[1756515955841,65.32,205.22,205.21,1e-08]
[1756515956334,70.19281941,205.22,205.21,1e-08]
[1756515956541,26.0,205.19,205.14,0.2]
[1756515956834,78.25559401,205.19,205.14,0.2]
[1756515957039,78.91559401,205.19,205.14,0.2]
[1756515957537,13.59559401,205.18,205.16,1e-08]
[1756515957747,13.59559401,205.16,205.14,1e-08]
[1756515958039,38.66,205.15,205.14,1e-08]
[1756515958222,43.53448208,205.15,205.14,1e-08]
[1756515958423,44.19448208,205.15,205.14,1e-08]
[1756515959219,57.79007609,205.15,205.14,1e-08]
[1756515960527,13.59559401,205.13,205.12,1e-08]
[1756515960725,52.25559401,205.13,205.12,1e-08]
[1756515960932,52.96559401,205.13,205.12,1e-08]
[1756515961141,13.59559401,205.12,205.11,1e-08]
[1756515961525,52.96559401,205.12,205.11,1e-08]
[1756515961841,83.13078901,205.12,205.11,1e-08]
[1756515962938,83.84078901,205.12,205.11,1e-08]
[1756515964043,83.84078901,205.12,204.81,20.0]
[1756515964044,39.59559401,205.0,204.81,20.0]
[1756515964241,38.66,204.99,204.97,0.66]
[1756515964756,26.0,204.96,204.94,0.66]
[1756515965120,38.66,204.95,204.94,0.66]
[1756515965335,38.66,204.95,204.83,13.59559401]
[1756515965812,38.66,204.95,204.84,5.54185901]
[1756515966016,26.0,204.92,204.85,0.66]
[1756515966242,38.68,204.92,204.85,0.66]
[1756515967531,26.0,204.94,204.85,5.54152182]
[1756515967841,38.68,204.93,204.86,0.66]
[1756515968623,26.0,204.94,204.86,0.66]
[1756515968624,26.0,204.92,204.86,0.66]
[1756515968838,64.68,204.92,204.86,0.66]
[1756515969845,38.68,204.91,204.86,5.54134995]
[1756515970140,38.68,204.91,204.87,0.66]
[1756515970525,26.0,204.94,204.87,0.66]
[1756515970722,38.68,204.93,204.87,0.66]
[1756515971145,38.68,204.93,204.87,5.5410461]
[1756515971350,26.0,204.95,204.88,0.66]
[1756515971646,38.68,204.94,204.88,0.66]
[1756515973144,38.68,204.94,204.88,5.5408469]
[1756515973349,38.68,204.93,204.89,0.66]
[1756515974336,38.68,204.93,204.89,5.54057008]
[1756515974536,38.68,204.95,204.9,0.66]
[1756515975226,38.68,204.96,204.9,0.66]
[1756515976443,38.68,204.96,204.91,4.8801913]
[1756515976651,38.68,204.96,204.92,0.66]
[1756515976949,38.68,204.96,204.93,0.66]
[1756515977734,38.68,204.96,204.91,0.66]
[1756515977937,38.68,204.96,204.92,0.66]
[1756515980541,39.39,204.96,204.93,0.03]
[1756515981060,0.71,204.95,204.93,0.03]
[1756515981270,26.0,204.94,204.93,0.03]
[1756515981640,38.68,204.96,204.93,0.03]
[1756515982158,39.39,204.96,204.93,0.03]
[1756515982535,0.71,204.95,204.93,0.03]
[1756515982836,38.68,204.94,204.93,0.03]
[1756515983243,39.39,204.94,204.93,0.03]
[1756515984462,0.71,204.94,204.93,0.03]
[1756515984757,39.39,204.94,204.93,0.03]
[1756515985758,38.68,204.94,204.93,0.03]
[1756515986267,26.0,204.96,204.93,0.03]
[1756515986435,38.68,204.95,204.93,0.03]
[1756515987641,64.68,204.95,204.93,0.69]
[1756515988252,64.68,204.95,204.93,0.03]
[1756515988639,65.39,204.95,204.93,0.03]
[1756515989742,64.68,204.95,204.93,0.03]
[1756515990657,65.39,204.95,204.93,0.03]
[1756515992085,64.68,204.95,204.93,0.03]
[1756515993941,38.68,204.95,204.93,0.03]
[1756515994640,39.39,204.95,204.93,0.03]
[1756515996663,38.68,204.95,204.93,0.03]
[1756515997864,39.39,204.95,204.93,0.03]
[1756516004179,0.71,204.94,204.93,0.03]
[1756516005382,38.68,204.95,204.93,0.03]
[1756516005697,39.39,204.95,204.93,0.03]
[1756516007472,38.66,204.94,204.93,0.03]
[1756516023713,0.66,204.98,204.93,0.69]
[1756516023884,39.3,204.97,204.93,0.69]
[1756516024711,39.3,204.97,204.93,0.03]
[1756516024889,0.66,204.99,204.94,0.66]
[1756516025089,39.3,204.98,204.93,0.03]
[1756516025415,39.3,204.98,204.93,0.69]
[1756516025620,0.66,204.97,204.93,0.69]
[1756516025784,64.62,204.96,204.93,0.03]
[1756516026197,0.66,204.95,204.93,0.03]
[1756516026494,38.62,204.94,204.93,0.03]
[1756516030527,38.62,204.95,204.93,0.03]
[1756516030710,39.28,204.95,204.93,0.03]
[1756516030907,38.62,204.95,204.94,0.66]
[1756516031698,0.66,204.98,204.94,0.66]
[1756516031900,38.62,204.97,204.94,0.66]
[1756516032228,30.87844685,204.99,204.93,0.03]
[1756516032396,38.62,204.99,204.95,0.66]
[1756516033217,38.62,204.99,204.94,4.880664]
[1756516033422,38.62,204.99,204.95,0.66]
[1756516033627,38.62,204.99,204.96,0.66]
[1756516034922,38.62,204.99,204.94,9.76012665]
[1756516035122,38.62,204.99,204.97,0.66]
[1756516035425,0.66,205.0,204.97,0.66]
[1756516036006,31.53769027,205.02,204.98,0.66]
[1756516036207,39.26,205.01,204.98,0.66]
[1756516036408,39.26,205.01,204.96,0.66]
[1756516036725,0.66,205.0,204.97,0.66]
[1756516038840,0.66,205.04,204.98,0.66]
[1756516039008,0.66,205.06,204.98,0.66]
[1756516039211,0.06,205.07,204.98,5.540664]
[1756516039427,0.06,205.07,204.99,0.66]
[1756516039629,0.06,205.07,205.0,4.87804878]
[1756516039816,0.72,205.07,205.01,0.66]
[1756516040016,0.06,205.07,205.01,0.66]
[1756516040411,0.72,205.07,205.01,0.66]
[1756516041930,5.59646112,205.07,205.01,0.66]
[1756516042309,0.72,205.07,205.01,0.66]
[1756516042933,0.72,205.07,205.01,5.53779012]
[1756516043130,0.72,205.07,205.01,4.87779012]
[1756516043428,0.72,205.07,205.02,0.66]
[1756516043640,0.66,205.06,205.01,4.87779012]
[1756516043934,0.06,205.07,205.02,0.66]
[1756516044230,0.72,205.07,205.03,0.66]
[1756516044644,0.66,205.06,205.03,0.66]
[1756516047443,0.66,205.06,205.01,0.66]
[1756516047617,0.66,205.06,205.0,9.75418554]
[1756516047819,0.66,205.06,205.02,0.66]
[1756516049241,26.0,205.04,205.0,4.876155]
[1756516049452,26.0,205.02,204.97,0.03]
[1756516049737,38.56,205.01,204.97,0.03]
[1756516050043,39.22,205.01,204.97,0.03]
[1756516051042,26.0,204.98,204.97,0.03]
[1756516051247,30.87852473,204.98,204.97,0.03]
[1756516051448,31.53852473,204.98,204.97,0.03]
[1756516054246,70.09852473,204.98,204.97,0.03]
[1756516055049,72.05456273,204.98,204.97,0.03]
[1756516063553,71.39456273,204.98,204.97,0.03]
[1756516063753,26.0,205.0,204.97,0.73]
[1756516064054,64.56,204.98,204.97,0.03]
[1756516064342,64.54,204.98,204.97,0.03]
[1756516064554,1.955847,205.01,204.97,0.73]
[1756516064729,38.54,204.99,204.97,0.73]
[1756516064930,38.54,204.99,204.98,0.7]
[1756516065365,43.41828674,204.99,204.98,0.7]
[1756516068244,38.54,204.99,204.98,0.7]
[1756516069152,64.54,205.0,204.98,0.7]
[1756516069346,69.41806257,205.0,204.98,0.7]
[1756516069753,69.41806257,205.0,204.97,0.03]
[1756516070054,0.66,204.99,204.97,0.03]
[1756516070253,38.54,204.98,204.97,0.03]
[1756516072853,43.41852473,204.98,204.97,0.03]
[1756516073853,44.07852473,204.98,204.97,0.03]
[1756516076641,4.87828674,204.99,204.97,0.03]
[1756516076840,38.52,204.98,204.97,0.03]
[1756516078363,44.05852473,204.98,204.97,0.03]
[1756516080460,43.39852473,204.98,204.97,0.03]
[1756516080662,38.52,204.98,204.97,0.73]
[1756516080967,43.39852473,204.98,204.97,0.73]
[1756516081340,43.39852473,204.98,204.97,0.03]
[1756516081660,4.87852473,204.98,204.97,0.03]
[1756516081842,26.0,204.98,204.97,0.03]
[1756516082044,64.5,204.98,204.97,0.7]
[1756516083064,69.37852473,204.98,204.97,0.03]
[1756516084459,26.0,204.98,204.97,0.7]
[1756516084658,64.5,204.99,204.97,0.7]
[1756516084861,64.5,204.99,204.98,0.67]
[1756516085241,26.0,205.0,204.98,0.67]
[1756516085447,0.73,205.07,204.98,0.67]
[1756516085663,38.5,205.06,204.98,0.67]
[1756516086452,64.5,205.06,204.98,0.67]
[1756516086647,64.5,205.06,204.99,9.81774874]
[1756516086849,64.5,205.06,205.0,0.67]
[1756516088750,64.5,205.06,205.0,5.54796256]
[1756516088949,64.5,205.06,205.01,0.67]
[1756516089478,65.17,205.06,205.01,0.67]
[1756516089776,65.15,205.06,205.02,0.67]
[1756516090351,65.15,205.06,205.03,0.67]
[1756516090661,64.54,205.07,205.04,0.67]
[1756516090856,64.54,205.07,205.05,0.67]
[1756516091262,0.06,205.07,205.06,0.67]
[1756516092483,0.06,205.07,205.06,5.54662147]
[1756516092693,0.06,205.1,205.09,26.0]
[1756516092858,0.06,205.12,205.1,26.0]
[1756516093251,6.28,205.21,205.11,0.67]
[1756516093445,26.0,205.2,205.11,0.67]
[1756516093654,0.67,205.19,205.11,0.67]
[1756516093963,26.0,205.2,205.11,0.67]
[1756516094164,26.0,205.2,205.12,14.651656]
[1756516094357,26.0,205.2,205.13,0.67]
[1756516094565,26.0,205.2,205.13,5.54494408]
[1756516094771,26.0,205.2,205.14,0.67]
[1756516095161,0.67,205.19,205.14,0.67]
[1756516096158,0.67,205.19,205.15,14.651657]
[1756516096578,0.67,205.19,205.14,0.67]
[1756516096780,0.67,205.19,205.12,4.87514276]
[1756516097080,4.87301765,205.22,205.15,14.651657]
[1756516097374,38.48,205.23,205.16,0.67]
[1756516098157,4.87211759,205.25,205.17,14.64951]
[1756516098380,0.67,205.24,205.18,0.67]
[1756516098958,0.67,205.24,205.17,14.64951]
[1756516099154,0.2,205.28,205.21,26.0]
[1756516099457,0.2,205.28,205.25,26.0]
[1756516099656,0.2,205.28,205.26,14.08278099]
[1756516099984,0.2,205.28,205.26,14.75278099]
[1756516100186,0.2,205.28,205.27,14.26559401]
[1756516100699,0.2,205.28,205.27,16.21752701]
[1756516102580,0.2,205.28,205.27,54.65752701]
[1756516103281,0.2,205.28,205.27,2.621933]
[1756516103458,0.2,205.28,205.27,1.951933]
[1756516106096,0.87,205.28,205.23,39.09]
[1756516106298,0.87,205.28,205.24,1.95241]
[1756516106670,0.87,205.28,205.24,2.62241]
[1756516106864,0.2,205.28,205.25,0.67]
[1756516107068,0.2,205.28,205.24,1.95241]
[1756516107069,0.2,205.28,205.26,0.67]
[1756516107288,0.2,205.28,205.27,0.67]
[1756516107686,0.2,205.28,205.25,38.42]
[1756516107877,0.2,205.28,205.26,0.67]
[1756516108184,0.2,205.28,205.27,4.872571]
[1756516109373,0.2,205.28,205.26,0.67]
[1756516109690,0.2,205.28,205.27,2.62241]
[1756516110065,0.2,205.28,205.27,1.95241]
[1756516114374,0.89,205.28,205.27,1.95241]
[1756516114685,0.2,205.28,205.27,39.09]
[1756516114895,0.2,205.28,205.27,39.57716324]
[1756516115390,0.06,205.29,205.28,13.59559401]
[1756516115566,0.06,205.29,205.28,14.28559401]
[1756516115767,0.06,205.31,205.3,26.0]
[1756516115967,0.06,205.31,205.3,26.48709206]
[1756516116166,0.06,205.31,205.3,40.77268607]
[1756516116362,0.06,205.31,205.3,79.17268607]
[1756516116587,0.06,205.31,205.3,84.04360667]
[1756516118576,0.06,205.31,205.3,85.99525467]
[1756516121295,0.06,205.31,205.3,165.59525467]
[1756516121494,0.06,205.31,205.3,165.10816261]
[1756516123608,0.06,205.31,205.3,112.4225686]
[1756516123784,0.06,205.31,205.3,150.8025686]
[1756516123977,0.06,205.31,205.3,81.551648]
[1756516124181,0.75,205.31,205.3,1.951648]
[1756516124381,0.75,205.31,205.3,40.331648]
[1756516125099,0.75,205.31,205.3,1.951648]
[1756516125307,0.75,205.31,205.3,40.331648]
[1756516126812,0.75,205.31,205.3,1.951648]
[1756516127703,0.75,205.31,205.28,38.38]
[1756516128002,0.69,205.3,205.28,38.38]
[1756516128205,0.69,205.29,205.28,38.38]
[1756516128582,0.69,205.29,205.28,40.332315]
[1756516129788,0.69,205.29,205.18,5.56376937]
[1756516129982,0.06,205.31,205.19,53.13294719]
[1756516130302,0.06,205.31,205.28,1.952124]
[1756516130491,0.75,205.31,205.28,40.312124]
[1756516130686,0.75,205.31,205.28,1.952124]
[1756516130687,0.69,205.3,205.28,1.952124]
[1756516130894,0.69,205.3,205.28,38.36]
[1756516131684,0.06,205.31,205.28,38.36]
[1756516131891,0.75,205.31,205.28,38.36]
[1756516132284,0.75,205.31,205.29,1.952124]
[1756516132887,0.06,205.31,205.29,1.952124]
[1756516133608,0.75,205.31,205.29,1.952124]
[1756516134183,0.06,205.31,205.29,1.952124]
[1756516136285,0.06,205.31,205.28,43.2613321]
[1756516137209,0.06,205.31,205.28,43.9513321]
[1756516137512,0.06,205.31,205.29,0.69]
[1756516137899,0.06,205.31,205.3,39.05]
[1756516138119,0.06,205.31,205.28,84.5013321]
[1756516138410,0.06,205.31,205.3,38.36]
[1756516138822,0.75,205.31,205.3,38.36]
[1756516139613,0.06,205.31,205.3,38.36]
[1756516142505,0.06,205.31,205.3,52.64559401]
[1756516143395,0.06,205.31,205.3,0.69]
[1756516143611,0.06,205.31,205.3,38.36]
[1756516144218,0.06,205.31,205.3,39.05]
[1756516144425,0.06,205.31,205.3,52.64559401]
[1756516144802,0.06,205.31,205.3,53.13268607]
[1756516145311,0.06,205.34,205.33,26.0]
[1756516145515,0.06,205.34,205.33,69.71722982]
[1756516145828,0.06,205.34,205.33,70.40722982]
[1756516148497,0.06,205.34,205.33,150.00722982]
[1756516148828,0.06,205.34,205.33,149.52020893]
[1756516149341,0.06,205.34,205.33,117.96]
[1756516149514,0.06,205.34,205.33,122.83020893]
[1756516149835,0.06,205.34,205.33,117.96]
[1756516150346,0.78,205.34,205.28,0.03]
[1756516150639,0.78,205.34,205.29,38.36]
[1756516150839,0.72,205.33,205.29,38.36]
[1756516151133,0.72,205.32,205.29,38.36]
[1756516151332,0.06,205.34,205.29,38.36]
[1756516151540,0.72,205.31,205.29,38.36]
[1756516151710,0.72,205.3,205.28,0.03]
[1756516151906,0.72,205.3,205.29,38.38]
[1756516153037,0.72,205.3,205.28,0.03]
[1756516153337,0.72,205.3,205.28,38.43]
[1756516153535,0.72,205.29,205.28,0.03]
[1756516159466,5.59115787,205.29,205.28,0.03]
[1756516160850,26.0,205.26,205.25,0.03]
[1756516161057,26.72,205.28,205.25,0.03]
[1756516161251,0.72,205.27,205.25,0.03]
[1756516161451,0.72,205.28,205.25,0.03]
[1756516163060,0.06,205.31,205.26,0.69]
[1756516163257,0.06,205.31,205.25,0.03]
[1756516163441,0.78,205.31,205.26,0.69]
[1756516163757,0.06,205.31,205.27,0.69]
[1756516164057,0.06,205.31,205.25,0.03]
[1756516164260,0.78,205.31,205.25,0.03]
[1756516165332,0.78,205.31,205.26,4.87186982]
[1756516165532,0.78,205.31,205.26,5.56186982]
[1756516167648,0.78,205.31,205.27,0.69]
[1756516168144,0.78,205.31,205.25,79.63]
[1756516168145,0.06,205.31,205.25,79.63]
[1756516168348,0.06,205.31,205.26,0.69]
[1756516169777,0.06,205.31,205.27,4.87163248]
[1756516169969,0.06,205.31,205.28,0.69]
[1756516170675,0.06,205.31,205.29,5.5711322]
[1756516171056,0.06,205.31,205.3,0.7]
[1756516171574,0.06,205.31,205.29,4.8711322]
[1756516171763,0.06,205.31,205.27,5.57152974]
[1756516171955,0.06,205.31,205.28,0.7]
[1756516172873,0.06,205.31,205.26,5.60186982]
[1756516173180,0.06,205.31,205.27,0.7]
[1756516173688,0.72,205.3,205.26,0.03]
[1756516174550,0.06,205.31,205.27,0.7]
[1756516174754,0.06,205.31,205.28,0.7]
[1756516175058,0.06,205.31,205.28,5.57124336]
[1756516175384,26.0,205.29,205.26,0.03]
[1756516175760,0.72,205.28,205.26,0.03]
[1756516175961,26.72,205.28,205.26,0.03]
[1756516176175,0.72,205.28,205.23,0.03]
[1756516176681,0.72,205.27,205.23,0.03]
[1756516177070,0.72,205.26,205.23,0.03]
[1756516177588,0.72,205.29,205.23,0.03]
[1756516177794,0.72,205.29,205.24,0.7]
[1756516178279,0.72,205.28,205.23,0.03]
[1756516178469,0.72,205.27,205.23,0.03]
[1756516178678,0.72,205.3,205.23,0.03]
[1756516178987,0.72,205.29,205.23,4.90258198]
[1756516180684,26.72,205.28,205.23,0.03]
[1756516181192,0.72,205.27,205.23,0.03]
[1756516184101,0.72,205.29,205.24,0.7]
[1756516184278,0.72,205.29,205.23,0.03]
[1756516184279,0.72,205.28,205.23,0.03]
[1756516184896,0.72,205.27,205.23,0.73]
[1756516185503,0.72,205.26,205.23,0.03]
[1756516186787,0.72,205.25,205.23,0.03]
[1756516187320,0.72,205.24,205.23,0.03]
[1756516188509,0.72,205.27,205.23,0.03]
[1756516189013,4.8709206,205.3,205.23,0.03]
[1756516189179,0.72,205.27,205.23,0.03]
[1756516189904,4.8709206,205.3,205.23,0.03]
[1756516190079,0.72,205.27,205.23,0.73]
[1756516191192,0.72,205.27,205.23,0.03]
[1756516191393,0.72,205.26,205.23,0.03]
[1756516191903,0.72,205.28,205.23,0.73]
[1756516192095,0.72,205.27,205.23,0.73]
[1756516192685,0.78,205.27,205.23,0.73]
[1756516193089,0.78,205.27,205.23,5.6025724]
[1756516193706,0.06,205.27,205.23,5.6025724]
[1756516194080,0.78,205.27,205.23,5.6025724]
[1756516195401,0.06,205.27,205.23,5.6025724]
[1756516197913,0.06,205.27,205.24,0.7]
[1756516198324,0.06,205.27,205.24,80.3]
[1756516198527,0.06,205.27,205.24,80.08723445]
[1756516198738,0.06,205.27,205.25,0.7]
[1756516199125,0.06,205.27,205.25,2.652315]
[1756516199726,0.06,205.27,205.26,5.57186982]
[1756516200107,0.06,205.27,205.26,6.0590568]
[1756516200542,0.06,205.27,205.26,21.60667881]
[1756516200726,0.06,205.3,205.29,39.59559401]
[1756516200938,0.06,205.3,205.29,78.52270979]
[1756516201232,0.06,205.3,205.29,79.22270979]
[1756516202368,0.06,205.3,205.26,19.00357237]
[1756516202369,0.06,205.3,205.26,2.652028]
[1756516202637,0.06,205.3,205.26,1.952028]
[1756516202818,0.68,205.29,205.23,0.03]
[1756516204529,4.87139516,205.28,205.23,0.03]
[1756516204732,0.68,205.27,205.23,0.03]
[1756516205055,0.06,205.3,205.23,0.73]
[1756516205225,0.74,205.3,205.24,38.5]
[1756516205541,0.06,205.3,205.25,0.7]
[1756516206549,0.06,205.3,205.26,38.52]
[1756516206850,0.68,205.29,205.26,38.52]
[1756516207053,0.06,205.3,205.26,38.52]
[1756516207345,0.74,205.3,205.26,38.52]
[1756516208344,0.74,205.3,205.24,44.09234457]
[1756516208635,0.74,205.3,205.24,46.04465957]
[1756516210952,0.68,205.29,205.23,0.03]
[1756516211259,26.0,205.27,205.23,0.03]
[1756516211435,0.68,205.26,205.23,0.03]
[1756516211829,0.68,205.25,205.23,0.03]
[1756516212440,0.68,205.24,205.23,0.03]
[1756516213556,5.55159458,205.28,205.23,0.03]
[1756516213853,26.0,205.27,205.23,0.03]
[1756516214056,26.68,205.27,205.23,0.03]
[1756516214239,0.68,205.26,205.23,0.03]
[1756516217038,0.68,205.25,205.23,0.03]
[1756516217665,0.68,205.24,205.23,0.03]
[1756516219163,0.68,205.26,205.23,0.03]
[1756516219359,0.68,205.25,205.23,0.03]
[1756516222855,4.87163248,205.27,205.23,0.03]
[1756516223064,0.68,205.24,205.23,0.03]
[1756516224667,0.68,205.26,205.23,0.03]
[1756516225246,0.06,205.3,205.24,0.7]
[1756516225247,0.74,205.3,205.24,0.7]
[1756516225966,31.61099385,205.3,205.24,0.7]
[1756516226983,31.61099385,205.3,205.23,0.03]
[1756516230674,0.06,205.3,205.24,0.7]
[1756516232180,0.06,205.3,205.25,4.872817]
[1756516232363,0.77,205.3,205.25,5.592817]
[1756516232560,0.77,205.3,205.25,4.872817]
[1756516232762,0.77,205.3,205.26,0.72]
[1756516233787,0.71,205.29,205.24,4.872817]
[1756516233958,26.0,205.27,205.23,0.03]
[1756516234159,0.71,205.26,205.23,0.03]
[1756516234577,0.71,205.25,205.23,0.03]
[1756516235868,0.71,205.27,205.23,0.03]
[1756516236459,0.71,205.26,205.23,0.03]
[1756516238176,31.58153406,205.28,205.23,0.03]
[1756516238381,0.71,205.27,205.23,0.03]
[1756516238975,0.71,205.26,205.23,0.03]
[1756516241990,0.71,205.25,205.23,0.03]
[1756516246724,0.71,205.27,205.23,0.03]
[1756516246878,0.71,205.26,205.23,0.03]
[1756516249995,0.77,205.3,205.24,0.72]
[1756516250381,26.77,205.3,205.24,0.72]
[1756516250896,26.77,205.3,205.23,0.03]
[1756516250897,0.77,205.3,205.23,0.03]
[1756516251284,5.6409253,205.3,205.23,0.03]
[1756516254307,26.0,205.26,205.23,0.03]
[1756516254691,0.71,205.25,205.23,0.03]
[1756516255506,4.87234457,205.24,205.23,0.03]
[1756516255986,5.58234457,205.24,205.23,0.03]
[1756516258204,19.17793858,205.24,205.23,0.03]
[1756516259998,23.16854557,205.24,205.23,0.03]
[1756516260314,26.0,205.21,205.2,1e-08]